[Event "Titled Tuesday Blitz June 28 Late 2022"]
[White "Elgersma, Onno"]
[Black "Yuan, Qingyu"]
[WhiteFideId "1053531"]
[BlackFideId "8609772"]
[WhiteElo "2304"]
[BlackElo "2359"]
[Result "0-1"]
[Round "02"]
[TimeControl "180+1"]
[Date "2022.06.28"]
[WhiteClock "0:00:13"]
[BlackClock "0:00:27"]

1. e4 {[%clk 0:03:00]}  c6 {[%clk 0:02:59]} 2. d4 {[%clk 0:02:53]}  d5 {[%clk 0:02:59]} 3. e5 {[%clk 0:02:54]}  c5 {[%clk 0:02:59]} 4. Nf3 {[%clk 0:02:51]}  cxd4 {[%clk 0:03:00]} 5. Nxd4 {[%clk 0:02:52]}  Nc6 {[%clk 0:03:00]} 6. Nxc6 {[%clk 0:02:42]}  bxc6 {[%clk 0:03:00]} 7. Bd3 {[%clk 0:02:42]}  e6 {[%clk 0:02:59]} 8. O-O {[%clk 0:02:41]}  a5 {[%clk 0:02:59]} 9. Nd2 {[%clk 0:02:31]}  Ne7 {[%clk 0:02:55]} 10. Kh1 {[%clk 0:02:28]}  Ng6 {[%clk 0:02:46]} 11. f4 {[%clk 0:02:23]}  Be7 {[%clk 0:02:41]} 12. Qe2 {[%clk 0:02:19]}  O-O {[%clk 0:02:41]} 13. Nf3 {[%clk 0:02:18]}  Qb6 {[%clk 0:02:27]} 14. Be3 {[%clk 0:02:07]}  c5 {[%clk 0:02:09]} 15. c4 {[%clk 0:02:03]}  d4 {[%clk 0:02:03]} 16. Bc1 {[%clk 0:01:57]}  Bb7 {[%clk 0:02:02]} 17. Nd2 {[%clk 0:01:56]}  f5 {[%clk 0:01:50]} 18. exf6 {[%clk 0:01:55]}  Rxf6 {[%clk 0:01:50]} 19. Ne4 {[%clk 0:01:43]}  Rf7 {[%clk 0:01:35]} 20. Qg4 {[%clk 0:01:14]}  Raf8 {[%clk 0:01:25]} 21. b3 {[%clk 0:01:14]}  Ne5 {[%clk 0:00:55]} 22. Qg3 {[%clk 0:00:59]}  Nxd3 {[%clk 0:00:50]} 23. Qxd3 {[%clk 0:01:00]}  Qc6 {[%clk 0:00:47]} 24. Re1 {[%clk 0:00:48]}  Rxf4 {[%clk 0:00:47]} 25. Bxf4 {[%clk 0:00:31]}  Rxf4 {[%clk 0:00:48]} 26. Qg3 {[%clk 0:00:20]}  Rxe4 {[%clk 0:00:45]} 27. Rxe4 {[%clk 0:00:20]}  Qxe4 {[%clk 0:00:45]} 28. Rf1 {[%clk 0:00:21]}  h6 {[%clk 0:00:38]} 29. h3 {[%clk 0:00:19]}  Kh7 {[%clk 0:00:37]} 30. Re1 {[%clk 0:00:17]}  Qc6 {[%clk 0:00:32]} 31. Rf1 {[%clk 0:00:13]}  Bf6 {[%clk 0:00:28]} 32. h4 {[%clk 0:00:12]}  Qe4 {[%clk 0:00:28]} 33. h5 {[%clk 0:00:12]}  Qh4+ {[%clk 0:00:28]} 34. Qxh4 {[%clk 0:00:12]}  Bxh4 {[%clk 0:00:29]} 35. Rf4 {[%clk 0:00:13]}  Bg5 {[%clk 0:00:28]} 36. Rf7 {[%clk 0:00:13]}  Be4 {[%clk 0:00:27]} 37. Ra7 {[%clk 0:00:13]}  d3 {[%clk 0:00:27]} 38. Rd7 {[%clk 0:00:13]}  d2 {[%clk 0:00:27]} 0-1


[Site "https://www.chess.com"]

[Event "Titled Tuesday Blitz June 28 Late 2022"]
[White "Estrada Nieto, Julian"]
[Black "Marin Masis, Jose Esteban"]
[WhiteFideId "5101018"]
[BlackFideId "6508146"]
[WhiteElo "2252"]
[BlackElo "1710"]
[Result "1-0"]
[Round "02"]
[TimeControl "180+1"]
[Date "2022.06.29"]
[WhiteClock "0:00:31"]
[BlackClock "0:00:03"]

1. e4 {[%clk 0:03:00]}  c5 {[%clk 0:02:59]} 2. Nf3 {[%clk 0:03:00]}  Nc6 {[%clk 0:02:59]} 3. Bb5 {[%clk 0:03:00]}  d6 {[%clk 0:02:44]} 4. d4 {[%clk 0:02:59]}  cxd4 {[%clk 0:02:36]} 5. Qxd4 {[%clk 0:02:59]}  Bd7 {[%clk 0:02:33]} 6. Bxc6 {[%clk 0:02:59]}  Bxc6 {[%clk 0:02:30]} 7. Nc3 {[%clk 0:02:59]}  Nf6 {[%clk 0:02:26]} 8. Bg5 {[%clk 0:02:59]}  e6 {[%clk 0:02:22]} 9. O-O-O {[%clk 0:02:59]}  Be7 {[%clk 0:02:20]} 10. Rhe1 {[%clk 0:02:59]}  O-O {[%clk 0:02:14]} 11. Kb1 {[%clk 0:02:59]}  Qc7 {[%clk 0:02:09]} 12. Qd2 {[%clk 0:02:59]}  Rfc8 {[%clk 0:01:59]} 13. Nd4 {[%clk 0:02:58]}  a6 {[%clk 0:01:51]} 14. f3 {[%clk 0:02:57]}  b5 {[%clk 0:01:48]} 15. g4 {[%clk 0:02:57]}  Qb7 {[%clk 0:01:36]} 16. Nce2 {[%clk 0:02:53]}  b4 {[%clk 0:01:32]} 17. Ng3 {[%clk 0:02:52]}  a5 {[%clk 0:01:30]} 18. Nh5 {[%clk 0:02:51]}  Ne8 {[%clk 0:01:26]} 19. h4 {[%clk 0:02:39]}  Bf8 {[%clk 0:01:07]} 20. Be3 {[%clk 0:02:03]}  a4 {[%clk 0:00:59]} 21. Rc1 {[%clk 0:02:00]}  Bd7 {[%clk 0:00:47]} 22. g5 {[%clk 0:02:00]}  b3 {[%clk 0:00:18]} 23. cxb3 {[%clk 0:01:58]}  axb3 {[%clk 0:00:18]} 24. a3 {[%clk 0:01:59]}  Nc7 {[%clk 0:00:16]} 25. Rc3 {[%clk 0:01:50]}  Nb5 {[%clk 0:00:15]} 26. Rxb3 {[%clk 0:01:40]}  Qa6 {[%clk 0:00:10]} 27. Qe2 {[%clk 0:01:19]}  Nxd4 {[%clk 0:00:05]} 28. Qxa6 {[%clk 0:01:18]}  Rxa6 {[%clk 0:00:05]} 29. Bxd4 {[%clk 0:01:17]}  e5 {[%clk 0:00:06]} 30. Be3 {[%clk 0:01:16]}  Be6 {[%clk 0:00:06]} 31. Rd3 {[%clk 0:01:04]}  d5 {[%clk 0:00:06]} 32. exd5 {[%clk 0:01:03]}  Bf5 {[%clk 0:00:06]} 33. Rd1 {[%clk 0:01:02]}  Rb8 {[%clk 0:00:06]} 34. Ka2 {[%clk 0:01:00]}  Ra4 {[%clk 0:00:04]} 35. Rb3 {[%clk 0:00:43]}  Rba8 {[%clk 0:00:02]} 36. Rc3 {[%clk 0:00:37]}  e4 {[%clk 0:00:01]} 37. Ng3 {[%clk 0:00:35]}  Bg4 {[%clk 0:00:02]} 38. fxg4 {[%clk 0:00:35]}  Bb4 {[%clk 0:00:02]} 39. Rc4 {[%clk 0:00:31]}  Bxa3 {[%clk 0:00:03]} 40. Rxa4 {[%clk 0:00:31]} 1-0


[Site "https://www.chess.com"]

[Event "Titled Tuesday Blitz June 28 Late 2022"]
[White "Eynullayev, Atilla"]
[Black "Thiel, Thomas"]
[WhiteFideId "13413570"]
[BlackFideId "4615964"]
[WhiteElo "1936"]
[BlackElo "2225"]
[Result "1-0"]
[Round "02"]
[TimeControl "180+1"]
[Date "2022.06.29"]
[WhiteClock "0:01:07"]
[BlackClock "0:00:26"]

1. Nf3 {[%clk 0:03:00]}  Nf6 {[%clk 0:02:56]} 2. g3 {[%clk 0:03:00]}  g6 {[%clk 0:02:55]} 3. Bg2 {[%clk 0:03:00]}  Bg7 {[%clk 0:02:54]} 4. O-O {[%clk 0:03:01]}  O-O {[%clk 0:02:52]} 5. c4 {[%clk 0:03:01]}  c6 {[%clk 0:02:49]} 6. Nc3 {[%clk 0:03:01]}  d5 {[%clk 0:02:47]} 7. cxd5 {[%clk 0:03:02]}  cxd5 {[%clk 0:02:47]} 8. d4 {[%clk 0:03:03]}  Bf5 {[%clk 0:02:45]} 9. Ne5 {[%clk 0:03:03]}  Ne4 {[%clk 0:02:43]} 10. Qb3 {[%clk 0:02:57]}  Nc6 {[%clk 0:02:41]} 11. Nxc6 {[%clk 0:02:23]}  bxc6 {[%clk 0:02:41]} 12. Bf4 {[%clk 0:02:23]}  h5 {[%clk 0:02:17]} 13. Rfd1 {[%clk 0:02:09]}  e6 {[%clk 0:02:14]} 14. Rac1 {[%clk 0:02:10]}  Qb6 {[%clk 0:01:55]} 15. Nxe4 {[%clk 0:01:51]}  Bxe4 {[%clk 0:01:50]} 16. Bxe4 {[%clk 0:01:36]}  dxe4 {[%clk 0:01:46]} 17. Qxb6 {[%clk 0:01:36]}  axb6 {[%clk 0:01:44]} 18. Rxc6 {[%clk 0:01:37]}  Rxa2 {[%clk 0:01:40]} 19. Rxb6 {[%clk 0:01:37]}  Rd8 {[%clk 0:01:38]} 20. Bd6 {[%clk 0:01:22]}  Ra4 {[%clk 0:01:30]} 21. e3 {[%clk 0:01:22]}  e5 {[%clk 0:01:30]} 22. d5 {[%clk 0:01:22]}  Ra5 {[%clk 0:01:17]} 23. b4 {[%clk 0:01:21]}  Ra2 {[%clk 0:01:11]} 24. Be7 {[%clk 0:01:21]}  Rd7 {[%clk 0:01:07]} 25. d6 {[%clk 0:01:20]}  f5 {[%clk 0:00:51]} 26. Rc1 {[%clk 0:01:07]}  Kf7 {[%clk 0:00:48]} 27. Rc7 {[%clk 0:01:08]}  Ke6 {[%clk 0:00:26]} 28. Rbb7 {[%clk 0:01:07]} 1-0


[Site "https://www.chess.com"]

[Event "Titled Tuesday Blitz June 28 Late 2022"]
[White "Fajdetic, Hrvoje"]
[Black "Barria Santos, Jose Guilherme"]
[WhiteFideId "14501945"]
[BlackFideId "1939300"]
[WhiteElo "2172"]
[BlackElo "2261"]
[Result "1/2-1/2"]
[Round "02"]
[TimeControl "180+1"]
[Date "2022.06.29"]
[WhiteClock "0:00:09"]
[BlackClock "0:00:13"]

1. b3 {[%clk 0:02:58]}  e5 {[%clk 0:02:56]} 2. Bb2 {[%clk 0:02:58]}  d6 {[%clk 0:02:56]} 3. e3 {[%clk 0:02:58]}  Nc6 {[%clk 0:02:56]} 4. d4 {[%clk 0:02:57]}  exd4 {[%clk 0:02:55]} 5. exd4 {[%clk 0:02:58]}  d5 {[%clk 0:02:55]} 6. Bd3 {[%clk 0:02:58]}  Nf6 {[%clk 0:02:55]} 7. Ne2 {[%clk 0:02:56]}  Bb4+ {[%clk 0:02:56]} 8. c3 {[%clk 0:02:56]}  Bd6 {[%clk 0:02:56]} 9. Nd2 {[%clk 0:02:55]}  O-O {[%clk 0:02:57]} 10. Qc2 {[%clk 0:02:49]}  Re8 {[%clk 0:02:56]} 11. O-O {[%clk 0:02:47]}  Bg4 {[%clk 0:02:49]} 12. f3 {[%clk 0:02:39]}  Bh5 {[%clk 0:02:48]} 13. Ng3 {[%clk 0:02:37]}  Bg6 {[%clk 0:02:45]} 14. Rae1 {[%clk 0:02:34]}  Bxd3 {[%clk 0:02:43]} 15. Qxd3 {[%clk 0:02:34]}  g6 {[%clk 0:02:44]} 16. Bc1 {[%clk 0:02:29]}  Kg7 {[%clk 0:02:35]} 17. Re2 {[%clk 0:02:12]}  Rxe2 {[%clk 0:02:34]} 18. Qxe2 {[%clk 0:02:13]}  Qd7 {[%clk 0:02:35]} 19. Re1 {[%clk 0:02:10]}  Nd8 {[%clk 0:02:33]} 20. Ndf1 {[%clk 0:02:05]}  Ne6 {[%clk 0:02:33]} 21. Qd2 {[%clk 0:01:58]}  Bf4 {[%clk 0:02:30]} 22. Qc2 {[%clk 0:01:52]}  Re8 {[%clk 0:02:30]} 23. Rxe6 {[%clk 0:01:35]}  Qxe6 {[%clk 0:02:17]} 24. Bxf4 {[%clk 0:01:33]}  h6 {[%clk 0:01:33]} 25. Qd2 {[%clk 0:01:31]}  Ng8 {[%clk 0:01:29]} 26. Bxc7 {[%clk 0:01:28]}  f6 {[%clk 0:01:27]} 27. Bf4 {[%clk 0:01:15]}  g5 {[%clk 0:01:25]} 28. Be3 {[%clk 0:01:15]}  Kg6 {[%clk 0:01:22]} 29. Qd3+ {[%clk 0:01:10]}  f5 {[%clk 0:01:22]} 30. Bf2 {[%clk 0:01:09]}  Kf6 {[%clk 0:01:14]} 31. Ne3 {[%clk 0:01:00]}  Ne7 {[%clk 0:01:06]} 32. Nh5+ {[%clk 0:00:52]}  Kf7 {[%clk 0:01:03]} 33. c4 {[%clk 0:00:40]}  Qg6 {[%clk 0:01:00]} 34. g4 {[%clk 0:00:35]}  f4 {[%clk 0:00:51]} 35. Qxg6+ {[%clk 0:00:33]}  Kxg6 {[%clk 0:00:52]} 36. Nc2 {[%clk 0:00:26]}  Rc8 {[%clk 0:00:49]} 37. c5 {[%clk 0:00:25]}  Re8 {[%clk 0:00:46]} 38. Kf1 {[%clk 0:00:24]}  Nc6 {[%clk 0:00:42]} 39. b4 {[%clk 0:00:21]}  b5 {[%clk 0:00:38]} 40. a3 {[%clk 0:00:18]}  Re6 {[%clk 0:00:30]} 41. Be1 {[%clk 0:00:17]}  Re7 {[%clk 0:00:29]} 42. Bd2 {[%clk 0:00:17]}  Re8 {[%clk 0:00:26]} 43. Kf2 {[%clk 0:00:17]}  Ra8 {[%clk 0:00:19]} 44. h4 {[%clk 0:00:16]}  a5 {[%clk 0:00:18]} 45. bxa5 {[%clk 0:00:12]}  Nxa5 {[%clk 0:00:19]} 46. Bxa5 {[%clk 0:00:10]}  Rxa5 {[%clk 0:00:20]} 47. hxg5 {[%clk 0:00:09]}  hxg5 {[%clk 0:00:18]} 48. Ke2 {[%clk 0:00:10]}  Ra4 {[%clk 0:00:16]} 49. Kd3 {[%clk 0:00:09]}  Ra8 {[%clk 0:00:14]} 50. Kd2 {[%clk 0:00:08]}  Ra4 {[%clk 0:00:14]} 51. Kc3 {[%clk 0:00:07]}  Rc4+ {[%clk 0:00:12]} 52. Kd3 {[%clk 0:00:07]}  Ra4 {[%clk 0:00:13]} 53. Kc3 {[%clk 0:00:08]}  Rc4+ {[%clk 0:00:12]} 54. Kd3 {[%clk 0:00:08]}  Ra4 {[%clk 0:00:13]} 55. Kc3 {[%clk 0:00:09]} 1/2-1/2


[Site "https://www.chess.com"]

[Event "Titled Tuesday Blitz June 28 Late 2022"]
[White "Fernandez Sanchez, Mario Andres"]
[Black "Karas, Marek"]
[WhiteFideId "6501621"]
[BlackFideId "14928558"]
[WhiteElo "2057"]
[BlackElo "2271"]
[Result "1-0"]
[Round "02"]
[TimeControl "180+1"]
[Date "2022.06.29"]
[WhiteClock "0:00:14"]
[BlackClock "0:00:01"]

1. d4 {[%clk 0:03:00]}  Nf6 {[%clk 0:02:57]} 2. Bf4 {[%clk 0:03:00]}  d5 {[%clk 0:02:57]} 3. Nf3 {[%clk 0:02:59]}  c5 {[%clk 0:02:57]} 4. e3 {[%clk 0:02:58]}  e6 {[%clk 0:02:57]} 5. Nbd2 {[%clk 0:02:56]}  Bd6 {[%clk 0:02:54]} 6. Bg3 {[%clk 0:02:55]}  O-O {[%clk 0:02:53]} 7. c3 {[%clk 0:02:55]}  Qc7 {[%clk 0:02:53]} 8. Bd3 {[%clk 0:02:52]}  Nbd7 {[%clk 0:02:53]} 9. dxc5 {[%clk 0:02:52]}  Nxc5 {[%clk 0:02:52]} 10. Bc2 {[%clk 0:02:53]}  b6 {[%clk 0:02:50]} 11. O-O {[%clk 0:02:52]}  Bb7 {[%clk 0:02:41]} 12. Re1 {[%clk 0:02:51]}  Bxg3 {[%clk 0:02:37]} 13. hxg3 {[%clk 0:02:50]}  Rad8 {[%clk 0:02:37]} 14. a4 {[%clk 0:02:47]}  e5 {[%clk 0:02:33]} 15. Nb3 {[%clk 0:02:46]}  Rfe8 {[%clk 0:02:31]} 16. Qb1 {[%clk 0:02:44]}  Nce4 {[%clk 0:02:23]} 17. a5 {[%clk 0:02:41]}  Ng4 {[%clk 0:02:16]} 18. Bxe4 {[%clk 0:02:33]}  dxe4 {[%clk 0:02:14]} 19. Nh2 {[%clk 0:02:34]}  h5 {[%clk 0:02:09]} 20. axb6 {[%clk 0:02:30]}  axb6 {[%clk 0:02:04]} 21. Nxg4 {[%clk 0:02:30]}  hxg4 {[%clk 0:02:04]} 22. Qc2 {[%clk 0:02:16]}  f5 {[%clk 0:01:50]} 23. Ra7 {[%clk 0:02:15]}  Ra8 {[%clk 0:01:49]} 24. Rea1 {[%clk 0:02:14]}  Rxa7 {[%clk 0:01:40]} 25. Rxa7 {[%clk 0:02:15]}  Ra8 {[%clk 0:01:41]} 26. Rxa8+ {[%clk 0:02:09]}  Bxa8 {[%clk 0:01:42]} 27. c4 {[%clk 0:02:00]}  Qd6 {[%clk 0:01:35]} 28. c5 {[%clk 0:01:56]}  bxc5 {[%clk 0:01:32]} 29. Nxc5 {[%clk 0:01:56]}  Bd5 {[%clk 0:01:26]} 30. b4 {[%clk 0:01:51]}  Qb6 {[%clk 0:01:25]} 31. Qc3 {[%clk 0:01:48]}  Qb5 {[%clk 0:01:23]} 32. Qxe5 {[%clk 0:01:41]}  Bf7 {[%clk 0:01:17]} 33. Qxf5 {[%clk 0:01:37]}  Qxb4 {[%clk 0:01:16]} 34. Nxe4 {[%clk 0:01:34]}  Qb1+ {[%clk 0:01:09]} 35. Kh2 {[%clk 0:01:33]}  Qb6 {[%clk 0:01:06]} 36. Qxg4 {[%clk 0:01:30]}  Qh6+ {[%clk 0:01:05]} 37. Qh4 {[%clk 0:01:30]}  Qc6 {[%clk 0:01:02]} 38. Ng5 {[%clk 0:01:26]}  Bg6 {[%clk 0:01:02]} 39. Qf4 {[%clk 0:01:20]}  Qd5 {[%clk 0:01:00]} 40. Nf3 {[%clk 0:01:18]}  Bf7 {[%clk 0:00:56]} 41. Ne5 {[%clk 0:01:11]}  Be6 {[%clk 0:00:56]} 42. g4 {[%clk 0:01:05]}  Qd2 {[%clk 0:00:53]} 43. Kg3 {[%clk 0:01:02]}  Qd6 {[%clk 0:00:50]} 44. g5 {[%clk 0:00:58]}  Qd5 {[%clk 0:00:49]} 45. Nf3 {[%clk 0:00:47]}  Qd8 {[%clk 0:00:42]} 46. Nh4 {[%clk 0:00:46]}  Qd7 {[%clk 0:00:29]} 47. Qb8+ {[%clk 0:00:40]}  Kf7 {[%clk 0:00:26]} 48. g6+ {[%clk 0:00:39]}  Ke7 {[%clk 0:00:20]} 49. Qe5 {[%clk 0:00:38]}  Kf8 {[%clk 0:00:15]} 50. e4 {[%clk 0:00:35]}  Qd3+ {[%clk 0:00:12]} 51. f3 {[%clk 0:00:34]}  Qd2 {[%clk 0:00:10]} 52. Qxe6 {[%clk 0:00:32]}  Qxg2+ {[%clk 0:00:09]} 53. Kf4 {[%clk 0:00:26]}  Qxf3+ {[%clk 0:00:05]} 54. Ke5 {[%clk 0:00:24]}  Qg3+ {[%clk 0:00:02]} 55. Kd5 {[%clk 0:00:22]}  Qd3+ {[%clk 0:00:03]} 56. Kc6 {[%clk 0:00:21]}  Qa6+ {[%clk 0:00:02]} 57. Kd5 {[%clk 0:00:19]}  Qd3+ {[%clk 0:00:02]} 58. Ke5 {[%clk 0:00:18]}  Qg3+ {[%clk 0:00:02]} 59. Kd4 {[%clk 0:00:16]}  Qf2+ {[%clk 0:00:02]} 60. Kc3 {[%clk 0:00:15]}  Qe1+ {[%clk 0:00:01]} 61. Kb3 {[%clk 0:00:14]}  Qb1+ {[%clk 0:00:01]} 62. Ka4 {[%clk 0:00:14]} 1-0


[Site "https://www.chess.com"]

[Event "Titled Tuesday Blitz June 28 Late 2022"]
[White "Fernandez Siles, Luis"]
[Black "Leiva, Gianmarco"]
[WhiteFideId "2209420"]
[BlackFideId "3804399"]
[WhiteElo "2368"]
[BlackElo "2704"]
[Result "0-1"]
[Round "02"]
[TimeControl "180+1"]
[Date "2022.06.29"]
[WhiteClock "0:00:43"]
[BlackClock "0:00:26"]

1. b4 {[%clk 0:03:00]}  e5 {[%clk 0:02:47]} 2. Bb2 {[%clk 0:03:00]}  Bxb4 {[%clk 0:02:44]} 3. Bxe5 {[%clk 0:03:00]}  Nf6 {[%clk 0:02:44]} 4. Nf3 {[%clk 0:02:56]}  Nc6 {[%clk 0:02:42]} 5. Bb2 {[%clk 0:02:54]}  d5 {[%clk 0:02:29]} 6. e3 {[%clk 0:02:49]}  O-O {[%clk 0:02:26]} 7. Bd3 {[%clk 0:02:40]}  Re8 {[%clk 0:02:24]} 8. O-O {[%clk 0:02:40]}  Bg4 {[%clk 0:02:16]} 9. h3 {[%clk 0:02:39]}  Bh5 {[%clk 0:02:15]} 10. Nc3 {[%clk 0:02:39]}  Ne5 {[%clk 0:01:54]} 11. Be2 {[%clk 0:02:39]}  Nc4 {[%clk 0:01:53]} 12. Rb1 {[%clk 0:02:27]}  Nxb2 {[%clk 0:01:49]} 13. Rxb2 {[%clk 0:02:28]}  Bxc3 {[%clk 0:01:47]} 14. dxc3 {[%clk 0:02:29]}  Rb8 {[%clk 0:01:39]} 15. c4 {[%clk 0:02:14]}  c6 {[%clk 0:01:28]} 16. Qd4 {[%clk 0:02:12]}  Qa5 {[%clk 0:01:20]} 17. cxd5 {[%clk 0:02:03]}  Re4 {[%clk 0:01:08]} 18. Qd1 {[%clk 0:02:00]}  Nxd5 {[%clk 0:01:00]} 19. Bd3 {[%clk 0:01:45]}  Nc3 {[%clk 0:00:46]} 20. Qd2 {[%clk 0:01:41]}  Bxf3 {[%clk 0:00:42]} 21. Bxe4 {[%clk 0:01:22]}  Ne2+ {[%clk 0:00:37]} 22. Kh1 {[%clk 0:01:16]}  Qxd2 {[%clk 0:00:35]} 23. Bxf3 {[%clk 0:01:14]}  Nc3 {[%clk 0:00:34]} 24. Rb3 {[%clk 0:01:02]}  g6 {[%clk 0:00:31]} 25. Rb4 {[%clk 0:00:45]}  Qxc2 {[%clk 0:00:26]} 26. Rc4 {[%clk 0:00:43]}  Qd3 {[%clk 0:00:26]} 27. Rc1 {[%clk 0:00:43]}  Qxc4 {[%clk 0:00:26]} 0-1


[Site "https://www.chess.com"]

[Event "Titled Tuesday Blitz June 28 Late 2022"]
[White "Garcia, Gabriel Gonzaga"]
[Black "Leve, Nitai"]
[WhiteFideId "2138956"]
[BlackFideId "2006898"]
[WhiteElo "2240"]
[BlackElo "2144"]
[Result "0-1"]
[Round "02"]
[TimeControl "180+1"]
[Date "2022.06.29"]
[WhiteClock "0:01:39"]
[BlackClock "0:00:06"]

1. e4 {[%clk 0:03:00]}  e6 {[%clk 0:02:58]} 2. Nf3 {[%clk 0:02:55]}  d5 {[%clk 0:02:58]} 3. Nc3 {[%clk 0:02:56]}  dxe4 {[%clk 0:02:57]} 4. Nxe4 {[%clk 0:02:55]}  Nf6 {[%clk 0:02:58]} 5. Nxf6+ {[%clk 0:02:55]}  gxf6 {[%clk 0:02:59]} 6. d4 {[%clk 0:02:55]}  Rg8 {[%clk 0:02:59]} 7. g3 {[%clk 0:02:55]}  c5 {[%clk 0:02:54]} 8. Bg2 {[%clk 0:02:53]}  Nc6 {[%clk 0:02:52]} 9. Be3 {[%clk 0:02:51]}  cxd4 {[%clk 0:02:41]} 10. Nxd4 {[%clk 0:02:52]}  Nxd4 {[%clk 0:02:39]} 11. Qxd4 {[%clk 0:02:52]}  Qxd4 {[%clk 0:02:33]} 12. Bxd4 {[%clk 0:02:53]}  e5 {[%clk 0:02:18]} 13. Be3 {[%clk 0:02:53]}  Bd7 {[%clk 0:02:07]} 14. O-O-O {[%clk 0:02:48]}  Bc6 {[%clk 0:01:58]} 15. Bxc6+ {[%clk 0:02:47]}  bxc6 {[%clk 0:01:59]} 16. Rd3 {[%clk 0:02:47]}  Be7 {[%clk 0:01:04]} 17. Rhd1 {[%clk 0:02:45]}  Rg4 {[%clk 0:00:43]} 18. Rd7 {[%clk 0:02:44]}  Rd8 {[%clk 0:00:41]} 19. Rxa7 {[%clk 0:02:42]}  Rxd1+ {[%clk 0:00:38]} 20. Kxd1 {[%clk 0:02:43]}  h5 {[%clk 0:00:38]} 21. Rc7 {[%clk 0:02:33]}  Ra4 {[%clk 0:00:30]} 22. a3 {[%clk 0:02:32]}  Ra6 {[%clk 0:00:20]} 23. Kd2 {[%clk 0:02:31]}  f5 {[%clk 0:00:17]} 24. Rc8+ {[%clk 0:02:23]}  Kd7 {[%clk 0:00:14]} 25. Rh8 {[%clk 0:02:24]}  h4 {[%clk 0:00:15]} 26. gxh4 {[%clk 0:02:23]}  f4 {[%clk 0:00:14]} 27. h5 {[%clk 0:02:13]}  fxe3+ {[%clk 0:00:14]} 28. Kxe3 {[%clk 0:02:11]}  Ra4 {[%clk 0:00:14]} 29. h6 {[%clk 0:02:11]}  Rh4 {[%clk 0:00:14]} 30. Rh7 {[%clk 0:02:11]}  Rxh6 {[%clk 0:00:12]} 31. Rxh6 {[%clk 0:02:10]}  Bg5+ {[%clk 0:00:12]} 32. Ke4 {[%clk 0:02:11]}  Bxh6 {[%clk 0:00:13]} 33. Kxe5 {[%clk 0:02:12]}  Bc1 {[%clk 0:00:12]} 34. Kf6 {[%clk 0:02:09]}  Ke8 {[%clk 0:00:12]} 35. a4 {[%clk 0:02:05]}  Bxb2+ {[%clk 0:00:12]} 36. Kg5 {[%clk 0:02:03]}  Bc3 {[%clk 0:00:13]} 37. h4 {[%clk 0:02:02]}  Kf8 {[%clk 0:00:11]} 38. Kf5 {[%clk 0:01:50]}  Kg7 {[%clk 0:00:11]} 39. Ke4 {[%clk 0:01:50]}  Be1 {[%clk 0:00:10]} 40. Kd3 {[%clk 0:01:50]}  Bxf2 {[%clk 0:00:10]} 41. a5 {[%clk 0:01:51]}  Bxh4 {[%clk 0:00:10]} 42. Ke4 {[%clk 0:01:39]}  Bf2 {[%clk 0:00:08]} 43. Ke5 {[%clk 0:01:39]}  Ba7 {[%clk 0:00:08]} 44. c4 {[%clk 0:01:37]}  Kg6 {[%clk 0:00:07]} 45. Kd6 {[%clk 0:01:38]}  f5 {[%clk 0:00:07]} 46. Kxc6 {[%clk 0:01:38]}  f4 {[%clk 0:00:07]} 47. Kb7 {[%clk 0:01:38]}  Be3 {[%clk 0:00:07]} 48. a6 {[%clk 0:01:38]}  f3 {[%clk 0:00:07]} 49. Kc6 {[%clk 0:01:39]}  f2 {[%clk 0:00:07]} 50. c5 {[%clk 0:01:39]}  Bxc5 {[%clk 0:00:07]} 51. a7 {[%clk 0:01:39]}  Bxa7 {[%clk 0:00:06]} 0-1


[Site "https://www.chess.com"]

[Event "Titled Tuesday Blitz June 28 Late 2022"]
[White "Gokerkan, Cem Kaan"]
[Black "Vusatiuk, Vladimir"]
[WhiteFideId "6336760"]
[BlackFideId "14118610"]
[WhiteElo "2723"]
[BlackElo "2472"]
[Result "0-1"]
[Round "02"]
[TimeControl "180+1"]
[Date "2022.06.29"]
[WhiteClock "0:00:05"]
[BlackClock "0:00:07"]

1. e4 {[%clk 0:03:00]}  e6 {[%clk 0:03:00]} 2. d4 {[%clk 0:03:00]}  d5 {[%clk 0:03:00]} 3. Nd2 {[%clk 0:03:01]}  c5 {[%clk 0:03:00]} 4. exd5 {[%clk 0:03:01]}  Qxd5 {[%clk 0:03:00]} 5. Ngf3 {[%clk 0:03:02]}  cxd4 {[%clk 0:03:01]} 6. Bc4 {[%clk 0:03:03]}  Qd7 {[%clk 0:03:01]} 7. O-O {[%clk 0:03:03]}  Nc6 {[%clk 0:03:01]} 8. Nb3 {[%clk 0:03:03]}  a6 {[%clk 0:03:01]} 9. Qe2 {[%clk 0:03:04]}  b5 {[%clk 0:02:55]} 10. Bd3 {[%clk 0:03:04]}  Nf6 {[%clk 0:02:53]} 11. Rd1 {[%clk 0:03:04]}  Qc7 {[%clk 0:02:48]} 12. a4 {[%clk 0:02:42]}  b4 {[%clk 0:02:35]} 13. Bg5 {[%clk 0:02:29]}  Be7 {[%clk 0:02:31]} 14. Nbxd4 {[%clk 0:02:29]}  Nxd4 {[%clk 0:02:29]} 15. Nxd4 {[%clk 0:02:29]}  O-O {[%clk 0:02:28]} 16. Bxf6 {[%clk 0:02:05]}  Bxf6 {[%clk 0:02:28]} 17. Qe4 {[%clk 0:02:05]}  g6 {[%clk 0:02:27]} 18. Qxa8 {[%clk 0:02:03]}  Bb7 {[%clk 0:02:27]} 19. Qa7 {[%clk 0:01:58]}  Ra8 {[%clk 0:02:25]} 20. Nxe6 {[%clk 0:01:23]}  Qc6 {[%clk 0:02:06]} 21. Qxb7 {[%clk 0:01:07]}  Qxb7 {[%clk 0:02:05]} 22. Nc5 {[%clk 0:01:07]}  Qc8 {[%clk 0:01:53]} 23. Be4 {[%clk 0:00:55]}  Ra7 {[%clk 0:01:49]} 24. Rd5 {[%clk 0:00:36]}  Rc7 {[%clk 0:01:36]} 25. Nd3 {[%clk 0:00:32]}  Rxc2 {[%clk 0:01:34]} 26. Nxb4 {[%clk 0:00:18]}  Rc1+ {[%clk 0:01:18]} 27. Rd1 {[%clk 0:00:19]}  Rxa1 {[%clk 0:01:15]} 28. Rxa1 {[%clk 0:00:20]}  Qc4 {[%clk 0:01:15]} 29. Nd5 {[%clk 0:00:20]}  Bxb2 {[%clk 0:01:14]} 30. Re1 {[%clk 0:00:21]}  Qxa4 {[%clk 0:01:08]} 31. g3 {[%clk 0:00:18]}  h5 {[%clk 0:01:01]} 32. Bf3 {[%clk 0:00:16]}  Kg7 {[%clk 0:00:55]} 33. Re7 {[%clk 0:00:15]}  Bf6 {[%clk 0:00:52]} 34. Rb7 {[%clk 0:00:08]}  Qc6 {[%clk 0:00:44]} 35. Rc7 {[%clk 0:00:04]}  Qb5 {[%clk 0:00:44]} 36. Kg2 {[%clk 0:00:04]}  a5 {[%clk 0:00:44]} 37. Nf4 {[%clk 0:00:01]}  Be5 {[%clk 0:00:29]} 38. Rb7 {[%clk 0:00:01]}  Qe8 {[%clk 0:00:20]} 39. Nd5 {[%clk 0:00:01]}  a4 {[%clk 0:00:20]} 40. Nb4 {[%clk 0:00:01]}  a3 {[%clk 0:00:18]} 41. Ra7 {[%clk 0:00:01]}  Qb5 {[%clk 0:00:16]} 42. Nc6 {[%clk 0:00:01]}  Bd6 {[%clk 0:00:13]} 43. Nd8 {[%clk 0:00:01]}  Qb2 {[%clk 0:00:03]} 44. Rxf7+ {[%clk 0:00:01]}  Kh6 {[%clk 0:00:04]} 45. Ne6 {[%clk 0:00:01]}  a2 {[%clk 0:00:03]} 46. Ra7 {[%clk 0:00:01]}  a1=Q {[%clk 0:00:04]} 47. Rxa1 {[%clk 0:00:02]}  Qxa1 {[%clk 0:00:04]} 48. Nf4 {[%clk 0:00:02]}  Bxf4 {[%clk 0:00:04]} 49. gxf4 {[%clk 0:00:03]}  Qf6 {[%clk 0:00:05]} 50. Kg3 {[%clk 0:00:04]}  h4+ {[%clk 0:00:06]} 51. Kg4 {[%clk 0:00:04]}  Qf5+ {[%clk 0:00:06]} 52. Kxh4 {[%clk 0:00:05]}  Qxf4+ {[%clk 0:00:07]} 53. Bg4 {[%clk 0:00:05]}  Qxf2+ {[%clk 0:00:07]} 54. Kh3 {[%clk 0:00:05]}  Kg5 {[%clk 0:00:07]} 55. Bc8 {[%clk 0:00:05]}  Qf3# {[%clk 0:00:07]} 0-1


[Site "https://www.chess.com"]